[Event "Live Chess"]
[Site "Chess.com"]
[Date "2023.05.20"]
[Round "-"]
[White "ramses-IIG"]
[Black "martynstanley"]
[Result "0-1"]
[WhiteElo "769"]
[BlackElo "1000"]
[TimeControl "300"]
[EndTime "10:51:36 PDT"]
[Termination "martynstanley won by resignation"]

1. e4 {[%clk 0:04:57.3]} 1... e6 {[%clk 0:04:57.7]} 2. Nf3 {[%clk 0:04:57.2]}
2... d5 {[%clk 0:04:56.3]} 3. e5 {[%clk 0:04:55.6]} 3... c6 {[%clk 0:04:54.7]}
4. d4 {[%clk 0:04:55.5]} 4... c5 {[%clk 0:04:52]} 5. c3 {[%clk 0:04:53.2]} 5...
Nc6 {[%clk 0:04:50.6]} 6. Bg5 {[%clk 0:04:47.7]} 6... Qb6 {[%clk 0:04:49.1]} 7.
b3 {[%clk 0:04:42.3]} 7... h6 {[%clk 0:04:46.9]} 8. Be3 {[%clk 0:04:35.8]} 8...
g5 {[%clk 0:04:45.2]} 9. dxc5 {[%clk 0:04:33.9]} 9... Bxc5 {[%clk 0:04:43.5]}
10. Bxc5 {[%clk 0:04:24.9]} 10... Qxc5 {[%clk 0:04:42.7]} 11. b4 {[%clk
0:04:20.5]} 11... Qb6 {[%clk 0:04:41.3]} 12. Be2 {[%clk 0:03:50.4]} 12... d4
{[%clk 0:04:40]} 13. Nxd4 {[%clk 0:03:34.4]} 13... Nxd4 {[%clk 0:04:37.3]} 14.
Qxd4 {[%clk 0:03:34.3]} 14... Qxd4 {[%clk 0:04:36]} 15. cxd4 {[%clk 0:03:34]}
15... Ne7 {[%clk 0:04:33.9]} 16. O-O {[%clk 0:03:31.1]} 16... Nc6 {[%clk
0:04:32.3]} 17. b5 {[%clk 0:03:29.1]} 17... Nxd4 {[%clk 0:04:31.3]} 18. Bd3
{[%clk 0:03:23.5]} 18... Bd7 {[%clk 0:04:29.1]} 19. Nc3 {[%clk 0:03:19.2]} 19...
a6 {[%clk 0:04:26.2]} 20. b6 {[%clk 0:03:15.8]} 20... O-O-O {[%clk 0:04:23.4]}
21. Rac1 {[%clk 0:03:10.7]} 21... Kb8 {[%clk 0:04:22.2]} 22. Be4 {[%clk
0:02:56.1]} 22... Bc6 {[%clk 0:04:20.7]} 23. Bxc6 {[%clk 0:02:53.5]} 23... bxc6
{[%clk 0:04:20.2]} 24. Na4 {[%clk 0:02:48.5]} 24... Kb7 {[%clk 0:04:19.2]} 25.
Rc4 {[%clk 0:02:41.7]} 25... Nb5 {[%clk 0:04:17.9]} 26. Rfc1 {[%clk 0:02:35.7]}
26... Rc8 {[%clk 0:04:14.4]} 27. f3 {[%clk 0:02:18.4]} 27... Rhd8 {[%clk
0:04:12.3]} 28. Kf2 {[%clk 0:02:17]} 28... Rd2+ {[%clk 0:04:10.9]} 29. Ke3
{[%clk 0:02:15.2]} 29... Rxa2 {[%clk 0:04:10]} 30. f4 {[%clk 0:02:06.8]} 30...
Ra3+ {[%clk 0:04:07.8]} 31. Ke4 {[%clk 0:02:04.4]} 31... gxf4 {[%clk 0:04:06.5]}
32. Kxf4 {[%clk 0:02:02.9]} 32... Ra2 {[%clk 0:04:03.6]} 33. g4 {[%clk
0:02:00.4]} 33... Rf2+ {[%clk 0:04:02.3]} 34. Kg3 {[%clk 0:01:57.9]} 34... Re2
{[%clk 0:03:59.5]} 35. Rc5 {[%clk 0:01:50.2]} 35... Re3+ {[%clk 0:03:55.3]} 36.
Kh4 {[%clk 0:01:47.4]} 36... Ra3 {[%clk 0:03:46]} 37. R1c4 {[%clk 0:01:45.9]}
37... Ra1 {[%clk 0:03:39.7]} 38. g5 {[%clk 0:01:38.2]} 38... hxg5+ {[%clk
0:03:37.8]} 39. Kxg5 {[%clk 0:01:36.9]} 39... Rg1+ {[%clk 0:03:37.4]} 40. Kf6
{[%clk 0:01:35.7]} 40... Rh1 {[%clk 0:03:36.4]} 41. Kxf7 {[%clk 0:01:34.6]}
41... Rxh2 {[%clk 0:03:35.8]} 42. Kxe6 {[%clk 0:01:33.6]} 42... Rh6+ {[%clk
0:03:34.5]} 43. Kf5 {[%clk 0:01:25.4]} 43... Rf8+ {[%clk 0:03:33.1]} 44. Ke4
{[%clk 0:01:23.7]} 44... Rh4+ {[%clk 0:03:31.2]} 45. Kd3 {[%clk 0:01:13.6]}
45... Rf3+ {[%clk 0:03:29.4]} 46. Ke2 {[%clk 0:01:11.3]} 46... Rxc4 {[%clk
0:03:23.9]} 47. Kxf3 {[%clk 0:01:05.1]} 47... Rxc5 {[%clk 0:03:23.1]} 48. Nxc5+
{[%clk 0:01:03.2]} 48... Kxb6 {[%clk 0:03:20.7]} 49. Ne4 {[%clk 0:00:58.9]}
49... Nc7 {[%clk 0:03:19.8]} 50. Kf4 {[%clk 0:00:57.6]} 50... Ne6+ {[%clk
0:03:18.9]} 51. Kf5 {[%clk 0:00:56.6]} 51... Nd4+ {[%clk 0:03:16.5]} 52. Kf6
{[%clk 0:00:55.1]} 52... a5 {[%clk 0:03:14.3]} 53. Nd2 {[%clk 0:00:39.6]} 53...
a4 {[%clk 0:03:12.1]} 54. Kf7 {[%clk 0:00:35.7]} 54... c5 {[%clk 0:03:11.1]} 55.
Nc4+ {[%clk 0:00:34.4]} 55... Kb5 {[%clk 0:03:10]} 56. Nd6+ {[%clk 0:00:32.4]}
56... Kb4 {[%clk 0:03:07.9]} 57. Nf5 {[%clk 0:00:28.5]} 57... Nxf5 {[%clk
0:03:06.3]} 58. e6 {[%clk 0:00:26.7]} 58... Nd6+ {[%clk 0:03:05.3]} 59. Kf6
{[%clk 0:00:23.7]} 59... Kb5 {[%clk 0:03:04.6]} 60. e7 {[%clk 0:00:22.9]} 60...
Kc6 {[%clk 0:03:04.1]} 61. Ke6 {[%clk 0:00:18.7]} 61... a3 {[%clk 0:03:03.2]}
62. e8=Q+ {[%clk 0:00:15.8]} 62... Nxe8 {[%clk 0:03:01.8]} 0-1

[Event "Live Chess"]
[Site "Chess.com"]
[Date "2023.05.20"]
[Round "-"]
[White "f4nomore"]
[Black "worldchessleaguelive"]
[Result "1-0"]
[WhiteElo "1384"]
[BlackElo "1389"]
[TimeControl "300"]
[EndTime "10:51:42 PDT"]
[Termination "f4nomore won by resignation"]

1. d4 {[%clk 0:04:58]} 1... d5 {[%clk 0:04:58.6]} 2. Bg5 {[%clk 0:04:55.2]} 2...
h6 {[%clk 0:04:56.3]} 3. Bh4 {[%clk 0:04:53.8]} 3... g5 {[%clk 0:04:55.2]} 4.
Bg3 {[%clk 0:04:52.6]} 4... Nc6 {[%clk 0:04:53.7]} 5. c3 {[%clk 0:04:47.4]} 5...
Bf5 {[%clk 0:04:51.2]} 6. Nd2 {[%clk 0:04:32.4]} 6... Nf6 {[%clk 0:04:27.3]} 7.
e3 {[%clk 0:04:27.1]} 7... Ne4 {[%clk 0:04:25.2]} 8. Nxe4 {[%clk 0:04:23.1]}
8... Bxe4 {[%clk 0:04:21.5]} 9. Nf3 {[%clk 0:04:19.8]} 9... f6 {[%clk
0:04:14.4]} 10. Nd2 {[%clk 0:04:14.3]} 10... Bg6 {[%clk 0:04:08.1]} 11. Be2
{[%clk 0:04:10.9]} 11... h5 {[%clk 0:04:01.6]} 12. Nb3 {[%clk 0:03:54.8]} 12...
e5 {[%clk 0:03:53.1]} 13. h3 {[%clk 0:03:49.4]} 13... exd4 {[%clk 0:03:49]} 14.
cxd4 {[%clk 0:03:46.5]} 14... Bb4+ {[%clk 0:03:47.4]} 15. Nd2 {[%clk 0:03:42.5]}
15... Qe7 {[%clk 0:03:32.9]} 16. O-O {[%clk 0:03:35.7]} 16... Bxd2 {[%clk
0:03:22.2]} 17. Qxd2 {[%clk 0:03:32.7]} 17... h4 {[%clk 0:03:21.5]} 18. Bh2
{[%clk 0:03:26.4]} 18... O-O-O {[%clk 0:03:19.8]} 19. Rac1 {[%clk 0:03:20.6]}
19... Bh5 {[%clk 0:03:17.8]} 20. Qd1 {[%clk 0:03:01]} 20... Bxe2 {[%clk
0:03:14.7]} 21. Qxe2 {[%clk 0:02:56.6]} 21... Nxd4 {[%clk 0:03:08.8]} 22. Qg4+
{[%clk 0:02:44.4]} 22... Ne6 {[%clk 0:03:06]} 23. Rxc7+ {[%clk 0:02:35]} 23...
Qxc7 {[%clk 0:02:36.2]} 24. Bxc7 {[%clk 0:02:30.6]} 24... Kxc7 {[%clk
0:02:34.3]} 25. Qxe6 {[%clk 0:02:26.3]} 25... Rhf8 {[%clk 0:02:17.8]} 26. Rc1+
{[%clk 0:02:14.2]} 26... Kb8 {[%clk 0:02:16.2]} 27. Qe7 {[%clk 0:01:55.4]} 1-0

[Event "Live Chess"]
[Site "Chess.com"]
[Date "2023.05.20"]
[Round "-"]
[White "Geomorph"]
[Black "smoggyrabbit"]
[Result "0-1"]
[WhiteElo "1215"]
[BlackElo "1618"]
[TimeControl "300"]
[EndTime "10:51:42 PDT"]
[Termination "smoggyrabbit won - game abandoned"]

1. e4 {[%clk 0:04:57]} 1... e6 {[%clk 0:04:59.1]} 2. Nf3 {[%clk 0:04:53]} 2...
d5 {[%clk 0:04:58.1]} 3. Nc3 {[%clk 0:04:52.5]} 3... Nf6 {[%clk 0:04:56.1]} 4.
e5 {[%clk 0:04:47.4]} 4... Nfd7 {[%clk 0:04:55.2]} 5. d4 {[%clk 0:04:45.7]} 5...
c5 {[%clk 0:04:54.4]} 6. dxc5 {[%clk 0:04:44.2]} 6... Nc6 {[%clk 0:04:51.4]} 7.
Bf4 {[%clk 0:04:41]} 7... Bxc5 {[%clk 0:04:48.2]} 8. Bd3 {[%clk 0:04:38.5]} 8...
Qb6 {[%clk 0:04:46.6]} 9. O-O {[%clk 0:04:34.1]} 9... Qxb2 {[%clk 0:04:28.9]}
10. Na4 {[%clk 0:04:15.9]} 10... Qb4 {[%clk 0:04:05.9]} 0-1

[Event "Live Chess"]
[Site "Chess.com"]
[Date "2023.05.20"]
[Round "-"]
[White "JamesWallman"]
[Black "yarek"]
[Result "0-1"]
[WhiteElo "774"]
[BlackElo "1895"]
[TimeControl "300"]
[EndTime "10:51:45 PDT"]
[Termination "yarek won on time"]

1. e4 {[%clk 0:04:51.4]} 1... g6 {[%clk 0:04:59.9]} 2. d4 {[%clk 0:04:48.6]}
2... Bg7 {[%clk 0:04:58.8]} 3. Nf3 {[%clk 0:04:45.1]} 3... c6 {[%clk 0:04:57.3]}
4. Nc3 {[%clk 0:04:42.1]} 4... d5 {[%clk 0:04:56.8]} 5. e5 {[%clk 0:04:39]} 5...
Bg4 {[%clk 0:04:54.7]} 6. Be2 {[%clk 0:04:34.3]} 6... Bxf3 {[%clk 0:04:52.1]} 7.
Bxf3 {[%clk 0:04:31.6]} 7... e6 {[%clk 0:04:52]} 8. O-O {[%clk 0:04:28.7]} 8...
Nd7 {[%clk 0:04:49.7]} 9. Bf4 {[%clk 0:04:20.1]} 9... c5 {[%clk 0:04:45.1]} 10.
Nb5 {[%clk 0:04:08.3]} 10... cxd4 {[%clk 0:03:56.3]} 11. Nd6+ {[%clk 0:03:59.5]}
11... Kf8 {[%clk 0:03:54.1]} 12. Qxd4 {[%clk 0:03:52.4]} 12... b6 {[%clk
0:03:26.3]} 13. Qb4 {[%clk 0:03:42.8]} 13... Ne7 {[%clk 0:03:19.6]} 14. Nb7
{[%clk 0:03:27.3]} 14... Qc7 {[%clk 0:03:11.8]} 15. Nd6 {[%clk 0:03:23.2]} 15...
Nxe5 {[%clk 0:02:54.9]} 16. Bxe5 {[%clk 0:03:02.2]} 16... Bxe5 {[%clk
0:02:52.2]} 17. Nb5 {[%clk 0:02:45.1]} 17... Qd7 {[%clk 0:02:40.8]} 18. Rfe1
{[%clk 0:02:35.5]} 18... Bf6 {[%clk 0:02:26.8]} 19. Re2 {[%clk 0:02:21.9]} 19...
Kg7 {[%clk 0:02:24.5]} 20. Rae1 {[%clk 0:02:15.2]} 20... Nc6 {[%clk 0:02:22.2]}
21. Qf4 {[%clk 0:01:58.5]} 21... Rac8 {[%clk 0:01:47.6]} 22. Nc3 {[%clk
0:01:46.9]} 22... Rhd8 {[%clk 0:01:39.8]} 23. h4 {[%clk 0:01:27.5]} 23... h5
{[%clk 0:01:35]} 24. Nd1 {[%clk 0:01:11.4]} 24... Nd4 {[%clk 0:01:28.4]} 25. Qg3
{[%clk 0:00:54.5]} 25... Nxe2+ {[%clk 0:01:24.3]} 26. Rxe2 {[%clk 0:00:47.8]}
26... Kh7 {[%clk 0:01:19.6]} 27. Ne3 {[%clk 0:00:40.2]} 27... d4 {[%clk
0:01:07.9]} 28. Nf1 {[%clk 0:00:32.2]} 28... Qe7 {[%clk 0:01:03.6]} 29. Qf4
{[%clk 0:00:19]} 29... Bxh4 {[%clk 0:00:59.8]} 30. g3 {[%clk 0:00:14]} 30... Bg5
{[%clk 0:00:57.4]} 31. Qe5 {[%clk 0:00:09.4]} 31... Bf6 {[%clk 0:00:54.2]} 32.
Qe4 {[%clk 0:00:07.3]} 32... Qd6 {[%clk 0:00:43.9]} 33. Bxh5 {[%clk 0:00:03.5]}
33... Qd5 {[%clk 0:00:34.8]} 0-1

[Event "Live Chess"]
[Site "Chess.com"]
[Date "2023.05.20"]
[Round "-"]
[White "chessleanstrategist"]
[Black "HD_IN4k"]
[Result "0-1"]
[WhiteElo "390"]
[BlackElo "334"]
[TimeControl "300"]
[EndTime "10:51:47 PDT"]
[Termination "HD_IN4k won on time"]

1. c4 {[%clk 0:04:58.9]} 1... c5 {[%clk 0:04:33]} 2. Nc3 {[%clk 0:04:52.7]} 2...
Nf6 {[%clk 0:04:25.6]} 3. Nf3 {[%clk 0:04:47.6]} 3... Nc6 {[%clk 0:04:19.6]} 4.
d4 {[%clk 0:04:42]} 4... cxd4 {[%clk 0:04:15.3]} 5. Nxd4 {[%clk 0:04:40.6]} 5...
Nxd4 {[%clk 0:04:13.3]} 6. Qxd4 {[%clk 0:04:39]} 6... g6 {[%clk 0:03:58.9]} 7.
g3 {[%clk 0:04:37.4]} 7... Bg7 {[%clk 0:03:53.7]} 8. Bg2 {[%clk 0:04:35.7]} 8...
d6 {[%clk 0:03:40.2]} 9. b3 {[%clk 0:04:28.3]} 9... O-O {[%clk 0:03:34.6]} 10.
Bb2 {[%clk 0:04:24.3]} 10... Bd7 {[%clk 0:03:28.2]} 11. O-O {[%clk 0:04:19.3]}
11... Bc6 {[%clk 0:03:10.8]} 12. Bxc6 {[%clk 0:04:08.7]} 12... bxc6 {[%clk
0:03:09.3]} 13. a4 {[%clk 0:03:54.3]} 13... Rb8 {[%clk 0:02:57.8]} 14. Qd1
{[%clk 0:03:32]} 14... Qd7 {[%clk 0:02:47.5]} 15. a5 {[%clk 0:03:22.2]} 15... h5
{[%clk 0:02:37.8]} 16. b4 {[%clk 0:02:56.4]} 16... Rxb4 {[%clk 0:02:28.6]} 17.
Rb1 {[%clk 0:02:04.8]} 17... Qh3 {[%clk 0:02:17.6]} 18. f3 {[%clk 0:01:29.7]}
18... h4 {[%clk 0:02:08.5]} 19. g4 {[%clk 0:00:44]} 19... Nxg4 {[%clk
0:01:57.4]} 20. Rf2 {[%clk 0:00:26.4]} 20... Nxf2 {[%clk 0:01:42.7]} 21. Kxf2
{[%clk 0:00:25.6]} 21... Qxh2+ {[%clk 0:01:33.1]} 22. Ke3 {[%clk 0:00:24]} 22...
Rfb8 {[%clk 0:00:49.5]} 23. Qh1 {[%clk 0:00:21.7]} 23... Qe5+ {[%clk 0:00:38.8]}
24. Ne4 {[%clk 0:00:19]} 24... Rb3+ {[%clk 0:00:36.2]} 25. Bc3 {[%clk
0:00:12.2]} 25... Rxc3+ {[%clk 0:00:33]} 26. Kf2 {[%clk 0:00:03.7]} 26... Rxb1
{[%clk 0:00:26.6]} 27. Qxb1 {[%clk 0:00:01.6]} 27... Qd4+ {[%clk 0:00:14.9]} 0-1

[Event "Live Chess"]
[Site "Chess.com"]
[Date "2023.05.20"]
[Round "-"]
[White "HoarseyHorsey"]
[Black "lightningorderyt"]
[Result "1-0"]
[WhiteElo "1382"]
[BlackElo "549"]
[TimeControl "300"]
[EndTime "10:51:50 PDT"]
[Termination "HoarseyHorsey won by resignation"]

1. d4 {[%clk 0:04:58.7]} 1... d5 {[%clk 0:04:58.4]} 2. c4 {[%clk 0:04:57.6]}
2... c6 {[%clk 0:04:53.8]} 3. cxd5 {[%clk 0:04:56.4]} 3... cxd5 {[%clk
0:04:52.7]} 4. Bf4 {[%clk 0:04:55.7]} 4... Nf6 {[%clk 0:04:50.1]} 5. e3 {[%clk
0:04:54.8]} 5... Bf5 {[%clk 0:04:47.1]} 6. Nf3 {[%clk 0:04:51.5]} 6... e6 {[%clk
0:04:42.9]} 7. Qb3 {[%clk 0:04:49.4]} 7... b6 {[%clk 0:04:37.9]} 8. Bb5+ {[%clk
0:04:40.4]} 8... Nbd7 {[%clk 0:04:24.8]} 9. Ne5 {[%clk 0:04:18.8]} 9... Bd6
{[%clk 0:03:48.5]} 10. Nxd7 {[%clk 0:04:06.6]} 10... Nxd7 {[%clk 0:03:46.5]} 11.
Bxd6 {[%clk 0:04:04.7]} 11... Qg5 {[%clk 0:03:27.1]} 12. O-O {[%clk 0:03:53.2]}
12... Be4 {[%clk 0:03:23.1]} 13. Bg3 {[%clk 0:03:48.7]} 13... a6 {[%clk
0:03:08.8]} 14. Bxd7+ {[%clk 0:03:44.6]} 14... Kxd7 {[%clk 0:03:05.8]} 15. Qxb6
{[%clk 0:03:32.5]} 15... Rhb8 {[%clk 0:02:52.9]} 16. Qc7+ {[%clk 0:03:28.4]}
16... Ke8 {[%clk 0:02:40.9]} 17. Nc3 {[%clk 0:03:23.9]} 17... Rxb2 {[%clk
0:02:32.8]} 18. Qc6+ {[%clk 0:03:18.8]} 18... Ke7 {[%clk 0:02:16.8]} 19. Qxa8
{[%clk 0:03:14.2]} 19... h5 {[%clk 0:02:01.2]} 20. Nxe4 {[%clk 0:03:07.4]} 20...
dxe4 {[%clk 0:01:56.1]} 21. Qa7+ {[%clk 0:03:00.3]} 21... Kf6 {[%clk 0:01:40.9]}
22. Be5+ {[%clk 0:02:52.5]} 22... Kg6 {[%clk 0:01:36.7]} 23. Qxa6 {[%clk
0:02:37.8]} 23... h4 {[%clk 0:01:35.5]} 24. h3 {[%clk 0:02:32.6]} 24... Qf5
{[%clk 0:01:05.5]} 25. a4 {[%clk 0:02:22.9]} 25... f6 {[%clk 0:01:00.8]} 26. Bc7
{[%clk 0:02:07.4]} 1-0

[Event "Live Chess"]
[Site "Chess.com"]
[Date "2023.05.20"]
[Round "-"]
[White "DerbyKnight"]
[Black "boilerboy1"]
[Result "1-0"]
[WhiteElo "1599"]
[BlackElo "1084"]
[TimeControl "300"]
[EndTime "10:51:52 PDT"]
[Termination "DerbyKnight won by checkmate"]

1. d4 {[%clk 0:04:58.4]} 1... Nf6 {[%clk 0:04:56.3]} 2. Nf3 {[%clk 0:04:57.3]}
2... g6 {[%clk 0:04:54.6]} 3. Nc3 {[%clk 0:04:55.7]} 3... Bg7 {[%clk 0:04:53.7]}
4. e4 {[%clk 0:04:55.1]} 4... O-O {[%clk 0:04:51]} 5. e5 {[%clk 0:04:52.6]} 5...
Ne8 {[%clk 0:04:48.3]} 6. Bf4 {[%clk 0:04:44.8]} 6... c5 {[%clk 0:04:46.5]} 7.
d5 {[%clk 0:04:42.9]} 7... d6 {[%clk 0:04:42.5]} 8. Qd2 {[%clk 0:04:24.6]} 8...
Bf5 {[%clk 0:04:35.7]} 9. h3 {[%clk 0:04:20.4]} 9... Nd7 {[%clk 0:04:30.3]} 10.
g4 {[%clk 0:04:17.2]} 10... Nxe5 {[%clk 0:04:27.6]} 11. Nxe5 {[%clk 0:04:10.4]}
11... dxe5 {[%clk 0:04:18.9]} 12. Bh6 {[%clk 0:04:04.2]} 12... Bxc2 {[%clk
0:04:14]} 13. Bxg7 {[%clk 0:04:00.7]} 13... Kxg7 {[%clk 0:04:08.5]} 14. Qxc2
{[%clk 0:03:58.6]} 14... Nf6 {[%clk 0:04:06]} 15. Bg2 {[%clk 0:03:52.3]} 15...
b6 {[%clk 0:04:02.5]} 16. O-O {[%clk 0:03:48.6]} 16... Rc8 {[%clk 0:03:59.8]}
17. f4 {[%clk 0:03:39.6]} 17... exf4 {[%clk 0:03:57.7]} 18. Rxf4 {[%clk
0:03:36.6]} 18... Qc7 {[%clk 0:03:55.6]} 19. Raf1 {[%clk 0:03:33.2]} 19... a6
{[%clk 0:03:45.5]} 20. Kh1 {[%clk 0:03:29.9]} 20... Qd6 {[%clk 0:03:42]} 21. Qf2
{[%clk 0:03:22]} 21... b5 {[%clk 0:03:32.4]} 22. Ne4 {[%clk 0:03:19]} 22... Nxe4
{[%clk 0:03:29.5]} 23. Bxe4 {[%clk 0:03:16.9]} 23... c4 {[%clk 0:03:20.4]} 24.
Rxf7+ {[%clk 0:03:14.5]} 24... Rxf7 {[%clk 0:02:59.2]} 25. Qxf7+ {[%clk
0:03:10.9]} 25... Kh6 {[%clk 0:02:49.1]} 26. g5+ {[%clk 0:03:07.7]} 26... Kxg5
{[%clk 0:02:39.8]} 27. Qxh7 {[%clk 0:02:56.5]} 27... Qg3 {[%clk 0:02:19.2]} 28.
Rg1 {[%clk 0:02:53.3]} 28... Qxg1+ {[%clk 0:02:13.7]} 29. Kxg1 {[%clk
0:02:49.9]} 29... Rf8 {[%clk 0:02:10.1]} 30. Qxg6+ {[%clk 0:02:47.4]} 30... Kh4
{[%clk 0:02:06.4]} 31. Qg4# {[%clk 0:02:45.3]} 1-0

[Event "Live Chess"]
[Site "Chess.com"]
[Date "2023.05.20"]
[Round "-"]
[White "garyjc"]
[Black "gmnorfolk"]
[Result "0-1"]
[WhiteElo "1035"]
[BlackElo "2135"]
[TimeControl "300"]
[EndTime "10:51:54 PDT"]
[Termination "gmnorfolk won by resignation"]

1. e4 {[%clk 0:04:55.1]} 1... e5 {[%clk 0:04:59]} 2. Nf3 {[%clk 0:04:53.3]} 2...
Nc6 {[%clk 0:04:58.6]} 3. d4 {[%clk 0:04:52.3]} 3... exd4 {[%clk 0:04:56.9]} 4.
Nxd4 {[%clk 0:04:49.9]} 4... Nf6 {[%clk 0:04:55.7]} 5. Nxc6 {[%clk 0:04:39.7]}
5... bxc6 {[%clk 0:04:53.7]} 6. Nc3 {[%clk 0:04:38.4]} 6... Bc5 {[%clk
0:04:49.5]} 7. e5 {[%clk 0:04:29.9]} 7... Qe7 {[%clk 0:04:44.5]} 8. Qe2 {[%clk
0:04:25.9]} 8... Nd5 {[%clk 0:04:42.4]} 9. Nxd5 {[%clk 0:04:08.9]} 9... cxd5
{[%clk 0:04:40.4]} 10. Bf4 {[%clk 0:04:02.5]} 10... a5 {[%clk 0:04:38.5]} 11.
O-O-O {[%clk 0:04:00.7]} 11... Rb8 {[%clk 0:04:31.3]} 12. Kb1 {[%clk 0:03:58.9]}
12... Ba3 {[%clk 0:04:24.3]} 13. b3 {[%clk 0:03:45]} 13... c6 {[%clk 0:04:21.8]}
14. e6 {[%clk 0:03:39.2]} 14... d6 {[%clk 0:03:59.7]} 15. exf7+ {[%clk
0:03:13.4]} 15... Kxf7 {[%clk 0:03:53.3]} 16. Qxe7+ {[%clk 0:02:48.6]} 16...
Kxe7 {[%clk 0:03:50.2]} 17. Re1+ {[%clk 0:02:47.8]} 17... Kf7 {[%clk 0:03:47.9]}
18. Bxd6 {[%clk 0:02:42.1]} 18... Bxd6 {[%clk 0:03:45.8]} 19. Bd3 {[%clk
0:02:39.8]} 19... h6 {[%clk 0:03:41.8]} 20. Rhf1 {[%clk 0:02:38.5]} 20... Bd7
{[%clk 0:03:39.3]} 21. f4 {[%clk 0:02:22.9]} 21... Rhe8 {[%clk 0:03:37]} 22. g4
{[%clk 0:01:45.1]} 22... Rxe1+ {[%clk 0:03:33.6]} 23. Rxe1 {[%clk 0:01:43.8]}
23... Bxf4 {[%clk 0:03:29.8]} 24. h3 {[%clk 0:01:43.7]} 24... g5 {[%clk
0:03:28.5]} 25. Rf1 {[%clk 0:01:34.6]} 25... Kf6 {[%clk 0:03:26.1]} 0-1

[Event "Live Chess"]
[Site "Chess.com"]
[Date "2023.05.20"]
[Round "-"]
[White "koljadar"]
[Black "minenko-1958"]
[Result "1-0"]
[WhiteElo "1530"]
[BlackElo "1421"]
[TimeControl "300"]
[EndTime "10:51:59 PDT"]
[Termination "koljadar won by resignation"]

1. d4 {[%clk 0:04:57.5]} 1... d5 {[%clk 0:04:58.5]} 2. c4 {[%clk 0:04:56]} 2...
dxc4 {[%clk 0:04:57.3]} 3. e3 {[%clk 0:04:54.8]} 3... c6 {[%clk 0:04:54.9]} 4.
Bxc4 {[%clk 0:04:53]} 4... Bf5 {[%clk 0:04:52.3]} 5. Nc3 {[%clk 0:04:49.8]} 5...
e6 {[%clk 0:04:50.6]} 6. Nf3 {[%clk 0:04:48.2]} 6... h6 {[%clk 0:04:48.9]} 7.
Qb3 {[%clk 0:04:44.3]} 7... Qc7 {[%clk 0:04:44]} 8. e4 {[%clk 0:04:20.1]} 8...
Bg4 {[%clk 0:04:41.1]} 9. Be2 {[%clk 0:04:15.3]} 9... Be7 {[%clk 0:04:34.7]} 10.
d5 {[%clk 0:04:09.7]} 10... exd5 {[%clk 0:04:24.9]} 11. exd5 {[%clk 0:04:09.6]}
11... c5 {[%clk 0:04:17.5]} 12. Be3 {[%clk 0:03:57.1]} 12... b6 {[%clk
0:04:15.4]} 13. Nb5 {[%clk 0:03:43.7]} 13... Qd8 {[%clk 0:04:05.8]} 14. Bf4
{[%clk 0:03:28]} 14... Na6 {[%clk 0:04:02.5]} 15. Qa4 {[%clk 0:03:20]} 15... Kf8
{[%clk 0:03:25.3]} 16. Qxa6 {[%clk 0:03:17.9]} 16... Qxd5 {[%clk 0:03:23.3]} 17.
Nc7 {[%clk 0:03:10.2]} 17... Qd8 {[%clk 0:03:03.5]} 18. Nxa8 {[%clk 0:03:07.4]}
18... Qxa8 {[%clk 0:03:01.7]} 19. h3 {[%clk 0:02:46.4]} 19... Be6 {[%clk
0:02:55.5]} 20. O-O {[%clk 0:02:42]} 20... Nf6 {[%clk 0:02:53.7]} 21. Bc4 {[%clk
0:02:37.8]} 21... Bxc4 {[%clk 0:02:50.5]} 22. Qxc4 {[%clk 0:02:37.7]} 22... g5
{[%clk 0:02:46.2]} 23. Ne5 {[%clk 0:02:28.8]} 23... Rh7 {[%clk 0:02:42.1]} 24.
Be3 {[%clk 0:02:17.2]} 24... Nd5 {[%clk 0:02:35.7]} 25. Rfe1 {[%clk 0:02:00.5]}
25... Bd6 {[%clk 0:02:27.2]} 26. Nf3 {[%clk 0:01:50.9]} 26... Rg7 {[%clk
0:02:17.2]} 27. Rad1 {[%clk 0:01:45.9]} 27... Nxe3 {[%clk 0:02:09.7]} 28. Rxe3
{[%clk 0:01:45.8]} 28... Bf4 {[%clk 0:02:05.6]} 29. Red3 {[%clk 0:01:39.1]}
29... Bc7 {[%clk 0:01:56.9]} 30. Rd7 {[%clk 0:01:36]} 30... f6 {[%clk
0:01:47.9]} 31. Rxg7 {[%clk 0:01:21.3]} 31... Kxg7 {[%clk 0:01:46.1]} 32. Rd7+
{[%clk 0:01:20.4]} 32... Kg6 {[%clk 0:01:43.2]} 33. Qd3+ {[%clk 0:01:10.5]}
33... f5 {[%clk 0:01:35.6]} 34. Rxc7 {[%clk 0:01:01.5]} 34... Qe4 {[%clk
0:01:28.1]} 35. Qxe4 {[%clk 0:00:50]} 35... fxe4 {[%clk 0:01:26.7]} 36. Nd2
{[%clk 0:00:47]} 36... e3 {[%clk 0:01:21.4]} 37. fxe3 {[%clk 0:00:45.8]} 37...
a5 {[%clk 0:01:16.6]} 38. Rb7 {[%clk 0:00:44.6]} 38... h5 {[%clk 0:01:10.1]} 39.
Rxb6+ {[%clk 0:00:43.5]} 39... Kf5 {[%clk 0:01:09.8]} 40. Rb5 {[%clk 0:00:42.5]}
40... a4 {[%clk 0:01:07.2]} 41. Rxc5+ {[%clk 0:00:41.4]} 41... Kf6 {[%clk
0:01:05.6]} 42. Rc4 {[%clk 0:00:40.2]} 42... a3 {[%clk 0:01:04.1]} 43. bxa3
{[%clk 0:00:39.2]} 43... g4 {[%clk 0:01:02.9]} 44. hxg4 {[%clk 0:00:38.3]} 44...
hxg4 {[%clk 0:01:01.9]} 45. Rxg4 {[%clk 0:00:38.2]} 45... Kf5 {[%clk 0:01:00.4]}
46. Rf4+ {[%clk 0:00:36.1]} 46... Ke5 {[%clk 0:00:59.3]} 47. a4 {[%clk 0:00:35]}
47... Kd5 {[%clk 0:00:57.5]} 48. a5 {[%clk 0:00:33.9]} 48... Kc6 {[%clk
0:00:57.4]} 49. g4 {[%clk 0:00:31.3]} 49... Kb5 {[%clk 0:00:56.1]} 50. g5 {[%clk
0:00:30.6]} 50... Kxa5 {[%clk 0:00:55]} 51. g6 {[%clk 0:00:30.5]} 51... Kb5
{[%clk 0:00:53.3]} 52. g7 {[%clk 0:00:30.4]} 52... Kc5 {[%clk 0:00:52.4]} 53.
g8=Q {[%clk 0:00:30.2]} 53... Kd6 {[%clk 0:00:48.7]} 54. Qg5 {[%clk 0:00:28.4]}
54... Ke6 {[%clk 0:00:47]} 55. Rf6+ {[%clk 0:00:27.4]} 55... Ke7 {[%clk
0:00:46]} 56. Qg7+ {[%clk 0:00:26.6]} 1-0